Cogmind - Beta 14 @@@ ROGUE MODE // 2024.11.22 @ 00:05:45 Player: Elisius Result: Destroyed by G-47 Trooper with Particle Gun Performance ------------- Evolutions (2) 1000 Regions Visited (3) 600 Robots Destroyed (62) 310 Value Destroyed (1517) 1517 Prototype IDs (2) 40 Alien Tech Used (0) 0 Bonus (44) 44 TOTAL SCORE: 3511 Bonus ------- High Alert Combat Kills 44 Cogmind --------- Core Integrity 0/550 Matter 300/300 Energy 100/100 System Corruption 0% Temperature Cool (9) Movement Core (350) Ox6 Location -8/Materials Parts ------- > --- POWER (1) -------- (None) > --- PROPULSION (4) --- (None) > --- UTILITY (3) ------ Large Storage Unit Signal Interpreter > --- WEAPON (3) ------- (None) > --- INVENTORY (15) --- Heavy Ion Engine Light Deuterium Engine Aluminum Leg Aluminum Leg Aluminum Leg High-capacity Storage Unit Advanced Weight Redist. System Signal Interpreter Improved Targeting Computer Beam Rifle Light Assault Rifle Peak State ------------ > --- POWER ------------ Heavy Ion Engine > --- PROPULSION ------- Carbon-fiber Leg Carbon-fiber Leg Carbon-fiber Leg Carbon-fiber Leg > --- UTILITY ---------- Large Storage Unit Signal Interpreter > --- WEAPON ----------- Beam Rifle Advanced Beam Cannon > --- INVENTORY -------- Ion Engine Heavy Ion Engine Aluminum Leg Aluminum Leg Aluminum Leg Medium Storage Unit High-capacity Storage Unit Advanced Weight Redist. System Targeting Computer Light Armor Plating Trap Extractor Spread Laser Assault Rifle Light Assault Rifle Heavy Assault Rifle [Rating: 24] Favorites ----------- Power Light Ion Engine Engine Light Ion Engine Propulsion Aluminum Leg Treads Light Treads Leg Aluminum Leg Utility Signal Interpreter Device Seismic Detector Storage Large Storage Unit Processor Signal Interpreter Protection Hardened Medium Armor Plating Weapon Light Assault Rifle Energy Gun Beam Rifle Energy Cannon Advanced Beam Cannon Ballistic Gun Light Assault Rifle Launcher Grenade Launcher Build | -11 -10 -9 -8 ------- Run | Yrd Mat Mat Mat Slots Evolved 4 | . . 2 2 Power . | . . . . Propulsion 2 | . . 2 . Utility 1 | . . . 1 Weapon 1 | . . . 1 Parts Attached 63 | 6 15 22 20 Power 9 | 1 3 2 3 Engine 9 | 1 3 2 3 Core . | . . . . Reactor . | . . . . Propulsion 25 | 2 2 9 12 Treads 2 | 2 . . . Leg 23 | . 2 9 12 Wheel . | . . . . Hover . | . . . . Flight . | . . . . Utility 13 | 1 5 4 3 Device 1 | . 1 . . Storage 6 | 1 2 3 . Processor 3 | . 2 1 . Hackware . | . . . . Protection 3 | . . . 3 Artifact . | . . . . Weapon 16 | 2 5 7 2 Energy Gun 4 | . 1 2 1 Energy Cannon 1 | . . 1 . Ballistic Gun 10 | 2 3 4 1 Ballistic Cannon . | . . . . Launcher 1 | . 1 . . Special Weapon . | . . . . Impact Weapon . | . . . . Slashing Weapon . | . . . . Piercing Weapon . | . . . . Special Melee Weapon . | . . . . Unidentified Prototypes 2 | . . 2 . Parts Lost 15 | . . 2 13 Power 1 | . . . 1 Propulsion 8 | . . 1 7 Utility 1 | . . . 1 Weapon 5 | . . 1 4 Highest Loss Streak 12 | . . 1 12 To Critical Strikes . | . . . . Average Slot Usage (%) 94 | . 92 97 94 Engine 11 | . 13 10 8 Treads 6 | . 20 . . Leg 27 | . 4 41 34 Device 1 | . 3 . . Storage 11 | . 14 11 9 Processor 9 | . 6 11 9 Protection 2 | . . . 8 Energy Gun 5 | . 1 6 8 Ballistic Gun 18 | . 24 14 16 Peak Build Rating 24 | 6 7 24 21 Average Rating 13 | 4 6 15 18 On Entrance 7 | . 6 7 16 Naked Turns . | . . . . Heaviest Build 41 | 11 12 35 41 Greatest Support 60 | 40 40 60 55 Greatest Overweight (x) 6 | . 3 2 6 Average Overweight (x) . | . . . . Largest Inventory Capacity 20 | 8 20 20 15 Average Capacity 12 | 6 8 14 15 Most Carried 15 | 6 8 15 15 Average Carried 11 | 3 7 12 14 Final Capacity 15 | 8 8 15 15 Final Carried 15 | 6 8 15 11 Class Distribution -------------------- 54% | Mutant 22% | Scavenger-Mutant 22% | Scavenger-Tank Dominant Class ---------------- Mutant | -10/Materials Mutant | -9/Materials Scavenger-Tank | -8/Materials Resources | -11 -10 -9 -8 ----------- Run | Yrd Mat Mat Mat Matter Collected 1400 | 260 319 348 473 Remotely . | . . . . Salvage Created 1935 | . 382 1022 531 Parts 116 | . 34 61 21 Haulers Intercepted . | . . . . Recyclers Shooed 9 | . 1 4 4 Parts Field Recycled . | . . . . Retrieved Matter . | . . . . Parts Self-Destructed . | . . . . Prevented . | . . . . Kills | -11 -10 -9 -8 ------- Run | Yrd Mat Mat Mat Combat Hostiles Destroyed 53 | . 14 29 10 Guns 53 | . 14 29 10 Classes Destroyed 7 | . 4 2 1 Worker 1 | . 1 . . Recycler 4 | . . 3 1 Watcher 4 | . 3 1 . Swarmer 25 | . 9 16 . Grunt 19 | . 5 6 8 Sentry 8 | . . 7 1 Hunter 1 | . . . 1 Best Kill Streak 4 | . 3 4 2 Combat Bots Only 4 | . 3 4 2 Max Kills in Single Turn 1 | . 1 1 1 Gunslinging . | . . . . Exploded . | . . . . Melee . | . . . . Uniques/NPCs Destroyed . | . . . . Combat | -11 -10 -9 -8 -------- Run | Yrd Mat Mat Mat Hostile Shots Fired 513 | . 83 181 249 Missed 208 | . 34 56 118 Damage Taken 3858 | . 429 1271 2158 Core 887 | . 97 233 557 Absorbed by Shields . | . . . . Regen/Repaired (Parts) 67 | . . . 67 Core Remaining (%) 67 | 100 61 41 . Volleys Fired 192 | . 54 87 51 Largest 3 | . 2 2 3 Hottest 141 | . 60 121 141 Shots Fired 420 | . 107 165 148 Gun 419 | . 106 165 148 Cannon . | . . . . Launcher 1 | . 1 . . Special . | . . . . Kinetic 277 | . 87 96 94 Thermal 123 | . . 69 54 Explosive 1 | . 1 . . Electromagnetic 19 | . 19 . . Robot Hit Streak 20 | . 9 20 10 Robot Miss Streak 10 | . 5 10 3 Penetration Max . | . . . . Secondary Targets 1 | . . 1 . Max Gunslinging Chain 1 | . . 1 . Shots Hit Robots 272 | . 59 118 95 Core Hits 130 | . 28 63 39 Critical Kills 2 | . 1 1 . Critical Parts Destroyed . | . . . . Critical Strikes 12 | . 2 8 2 Burn 9 | . . 7 2 Destroy 2 | . 1 1 . Corrupt 1 | . 1 . . Melee Attacks . | . . . . Impact . | . . . . Slashing . | . . . . Piercing . | . . . . Sneak Attacks . | . . . . Combat Hostiles . | . . . . Follow-up Attacks . | . . . . Damage Inflicted 3518 | . 753 1366 1399 Guns 3454 | . 701 1366 1387 Cannons . | . . . . Explosions 45 | . 45 . . Melee . | . . . . Ramming 19 | . 7 . 12 Kinetic 1993 | . 531 659 803 Thermal 1291 | . . 707 584 Explosive 45 | . 45 . . Electromagnetic 170 | . 170 . . Impact . | . . . . Slashing . | . . . . Piercing . | . . . . Highest Corruption 1 | . 1 . . Average Corruption 1 | . 1 . . Corruption Purged . | . . . . Corruption Blocked . | . . . . Effects 7 | . 7 . . Message Errors 1 | . 1 . . Matter Fused 2 | . 2 . . Energy Discharges 2 | . 2 . . Data Loss (minor) 2 | . 2 . . Overload Shots . | . . . . Overflow Damage . | . . . . Projectiles . | . . . . Explosions . | . . . . Melee . | . . . . Knockbacks . | . . . . Impact . | . . . . Kinetic . | . . . . Secondary . | . . . . Self-Inflicted Damage 1 | . 1 . . Shots . | . . . . Rammed 2 | . 2 . . Targets Rammed 7 | . 2 . 5 Kicked 5 | . . . 5 Crushed . | . . . . Highest Temperature 300 | . 42 300 292 Average Temperature 70 | . 15 79 77 Received Heat Transfer 780 | . 96 252 432 Effects 2 | . . 2 . Energy Bleed 1 | . . 1 . Interference 1 | . . 1 . Siege Activations . | . . . . Robots Corrupted . | . . . . Combat Hostiles . | . . . . Parts Fried 1 | . 1 . . Impact Corruptions . | . . . . Robots Melted . | . . . . Combat Hostiles . | . . . . Parts Melted 8 | . . 7 1 Heat Transferred 3640 | . . 2080 1560 Parts Sabotaged . | . . . . Parts Stolen . | . . . . Parts Stripped . | . . . . Power Chain Reactions . | . . . . Alert | -11 -10 -9 -8 ------- Run | Yrd Mat Mat Mat Peak Influence 452 | . 280 452 400 Initial 190 | . . 118 190 Average 192 | . 125 221 260 Maximum Alert Level 2 | . 1 2 2 Low Security (%) 55 | 100 85 51 17 Level 1 36 | . 14 29 80 Level 2 8 | . . 19 2 Level 3 . | . . . . Level 4 . | . . . . Level 5 . | . . . . High Security . | . . . . Max Security . | . . . . Squads Dispatched 9 | . 2 3 4 Investigation 3 | . 1 2 . Extermination . | . . . . Reinforcement 5 | . 1 1 3 Assault . | . . . . Garrison 1 | . . . 1 Intercept . | . . . . Searches Triggered . | . . . . Construction Impeded 1 | . . . 1 Haulers Reinforced . | . . . . Active Scanning Responses . | . . . . Cargo Convoy Interrupts . | . . . . Stealth | -11 -10 -9 -8 --------- Run | Yrd Mat Mat Mat Distress Signals 9 | . 3 4 2 Communications Jammed . | . . . . Distress Signals . | . . . . Times Spotted 104 | . 32 43 29 Peak Tracking Total 6 | . 5 5 6 Tactical Retreats 10 | . 4 1 5 Traps | -11 -10 -9 -8 ------- Run | Yrd Mat Mat Mat Traps Triggered 6 | . 5 1 . Indirectly . | . . . . Trap Hack Attempts . | . . . . Triggered . | . . . . Disarmed . | . . . . Reprogrammed . | . . . . Reused . | . . . . Traps Extracted . | . . . . Installed . | . . . . Triggered . | . . . . Machines | -11 -10 -9 -8 ---------- Run | Yrd Mat Mat Mat Machines Disabled 1 | . . 1 . Max in Single Turn 1 | . . 1 . Machines Repaired . | . . . . Machines Dismantled . | . . . . Machines Sabotaged . | . . . . Overloaded Fab Kills . | . . . . Hacking | -11 -10 -9 -8 --------- Run | Yrd Mat Mat Mat Machines Accessed 14 | . 2 10 2 Terminals 10 | . 2 7 1 Fabricators . | . . . . Repair Stations 1 | . . . 1 Recycling Units 1 | . . 1 . Scanalyzers 2 | . . 2 . Garrison Access . | . . . . Total Hacks 36 | . 5 28 3 Successful 18 | . 1 15 2 Failed 18 | . 4 13 1 Catastrophic 7 | . 1 5 1 Database Lockouts . | . . . . Manual 20 | . 7 12 1 Terminals 23 | . 5 17 1 Fabricators . | . . . . Repair Stations 2 | . . . 2 Recycling Units 2 | . . 2 . Scanalyzers 9 | . . 9 . Garrison Access . | . . . . Terminal Hacks 5 | . . 5 . Alert Level 3 | . . 3 . Unreport Threat 1 | . . 1 . Registered Components 1 | . . 1 . Fabricator Hacks . | . . . . Repair Station Hacks 2 | . . . 2 Scan Component 1 | . . . 1 Repair 1 | . . . 1 Recycling Unit Hacks 2 | . . 2 . Report Inventory 1 | . . 1 . Retrieve Matter 1 | . . 1 . Scanalyzer 8 | . . 8 . Insert Component 4 | . . 4 . Analyze 4 | . . 4 . Garrison Access Hacks . | . . . . Unauthorized Hacks 1 | . 1 . . Terminals 1 | . 1 . . Track 1 | . 1 . . Fabricators . | . . . . Repair Stations . | . . . . Recycling Units . | . . . . Scanalyzers . | . . . . Garrison Access . | . . . . Data Cores Recovered . | . . . . Used . | . . . . Hacking Detections 13 | . 2 9 2 Full Trace Events 4 | . 1 3 . Feedback Events . | . . . . Feedback Blocked . | . . . . Robot Schematics Acquired . | . . . . Robots Built . | . . . . Authchips . | . . . . Time . | . . . . Total Robot Build Rating . | . . . . Part Schematics Acquired 4 | . . 4 . Parts Built . | . . . . Authchips . | . . . . Time . | . . . . Total Part Build Rating . | . . . . Parts Repaired 1 | . . . 1 Time 26 | . . . 26 Parts Recycled . | . . . . Recycled Matter . | . . . . Retrieved Matter . | . . . . Retrieved Components . | . . . . Parts Scanalyzed 4 | . . 4 . Part Schematics Acquired 4 | . . 4 . Parts Damaged 1 | . . 1 . Bothacking | -11 -10 -9 -8 ------------ Run | Yrd Mat Mat Mat Used RIF Installer . | . . . . Robots Hacked . | . . . . Non-combat . | . . . . Combat . | . . . . Robot Hacks Applied . | . . . . Relay Couplers Released . | . . . . Fabnet Peak Effective % . | . . . . Robots Rewired . | . . . . Allies Hacked . | . . . . Hacks Repelled . | . . . . Allies | -11 -10 -9 -8 -------- Run | Yrd Mat Mat Mat Total Allies . | . . . . Largest Group . | . . . . Highest-Rated Group . | . . . . Highest-Rated Ally . | . . . . Total Orders . | . . . . Ally Attacks . | . . . . Total Damage . | . . . . Kills . | . . . . Allies Corrupted . | . . . . Allies Melted . | . . . . Intel | -11 -10 -9 -8 ------- Run | Yrd Mat Mat Mat Robot Analysis Total . | . . . . Derelict Logs Recovered . | . . . . Drone Launches . | . . . . Drone Recoveries . | . . . . Exploration | -11 -10 -9 -8 ------------- Run | Yrd Mat Mat Mat Turns Passed 3820 | 156 1195 1516 953 Spaces Moved 2247 | 93 614 965 575 Core 52 | 6 42 . 4 Treads 530 | 87 443 . . Legs 1665 | . 129 965 571 Wheels . | . . . . Hover . | . . . . Flight . | . . . . Fastest Speed 50 | 50 120 120 112 Average Speed 130 | 152 153 120 120 Slowest Speed 350 | 160 200 260 350 Overloaded Moves . | . . . . Propulsion Burnouts . | . . . . Robots Hopped . | . . . . Cave-ins Triggered . | . . . . Exploration Rate (%) 39 | 7 52 67 32 Regions Visited 3 Branch Regions . Pre-discovered Areas . | . . . . Known Exits Taken 2 | . 1 1 . Unknown Exits Taken 1 | 1 . . . Scrap Searched . | . . . . Spaces Dug . | . . . . Terrain Destroyed 9 | . 9 . . Melee . | . . . . Projectile . | . . . . AOE 9 | . 9 . . Terrain Rammed . | . . . . Walls Destroyed . | . . . . Machines Disabled . | . . . . Actions | -11 -10 -9 -8 --------- Run | Yrd Mat Mat Mat Total 2777 | 104 767 1176 730 Wait 174 | . 70 52 52 Move 2244 | 92 613 964 575 Hop . | . . . . Pick Up 46 | 6 5 24 11 Fast Attach 24 | 6 10 6 2 Attach 11 | . . 5 6 Detach 2 | . . 2 . Swap 28 | . 5 11 12 Drop 49 | . 8 25 16 Fire 192 | . 54 87 51 Melee . | . . . . Ram 1 | . 1 . . Kick 5 | . . . 5 Crush 1 | . 1 . . Escape Stasis . | . . . . Rewire . | . . . . Trap . | . . . . Miscellaneous . | . . . . Route ------- -11/Scrapyard -10/Materials (discovered 3 exits: *Mat x2 / [*Min]) -9/Materials (discovered 2 exits: *Mat / *Min) -8/Materials (discovered 1 exit: [*Fac]) History --------- Turn | Location | Event 14 | -11/Scrapyard | Discovered new exit (range 15) 157 | -11/Scrapyard | Entered Materials 310 | -10/Materials | Build established: Mutant 449 | -10/Materials | Discovered new exit (range 11) 790 | -10/Materials | Discovered new exit (range 13) 1141 | -10/Materials | Discovered new exit (range 15) 1267 | -10/Materials | Identified exit to Materials 1352 | -10/Materials | Entered another Materials area 1352 | -9/Materials | Evolved 2 slots: Propulsion x2 1539 | -9/Materials | Build established: Scavenger-Mutant 1780 | -9/Materials | Discovered new exit (range 8) 1869 | -9/Materials | Discovered new exit (range 15) 2175 | -9/Materials | Build established: Mutant 2539 | -9/Materials | Core integrity fell below 50% 2755 | -9/Materials | Identified exit to Mines 2866 | -9/Materials | Identified exit to Materials 2868 | -9/Materials | Entered another Materials area 2868 | -8/Materials | Evolved 2 slots: Utility x1, Weapon x1 2983 | -8/Materials | Repaired Aluminum Leg 3021 | -8/Materials | Garrison activated, responded to threat 3178 | -8/Materials | Build established: Scavenger-Tank 3707 | -8/Materials | Discovered new exit (range 9) 3756 | -8/Materials | Core integrity fell below 50% 3807 | -8/Materials | Core integrity fell below 20% 3821 | -8/Materials | Destroyed by G-47 Trooper with Particle Gun Last Messages --------------- Acquired 4 matter. R-06 Scavenger destroyed. Penetrated by Slug. Aluminum Leg destroyed. Hrd. Medium Armor Plating destroyed. Assault Rifle destroyed. Ion Engine destroyed. Aluminum Leg destroyed. Beam Rifle destroyed. Knocked back. M-13 Machinist repairs X-57 Shotgunner. U-05 Engineer builds a Wall. Acquired 30 matter. Carbon-fiber Leg destroyed. T-07 Excavator destroyed. Carbon-fiber Leg destroyed. Aluminum Leg destroyed. Kicked U-05 Engineer. Carbon-fiber Leg destroyed. M-13 Machinist repairs X-57 Shotgunner. Map ----- +----------------------------------------------------+ | ???????????????????????????????????????? | | ???????????????????????????????????????? | | ???????????????????????????????????????? | | ???????????????????????????????????????? | | ???????????????????????????????????????? | | ???????????????????????????????????????? | | ???????????????????????????????????????? | | ?????????????????????????????????????? ? | | ????????????????????????? #??????????? | | ????################### #####???####+# | | ????# ?? | | ????# ??? | | ????# ??? | | ????####+######+#########??????????# | | ?????# # % " #????????????# | | ?????#""" # " #????????????# | | ?????#""" # %! #????????????# | | ?????#""" # ############## | | ?????# # + + # | | ?????# ! # % ##### """"" # | | ?############ #???# """"" # | | ?# !! # #???#] """"% # | | ?# """ ]###/#######???# """"% +% | | ?# """"" # #u# ###?????# """""=# | | ?#! """"" !### ###???????# """"" # | | ?# """"" #?#@#?????????# """"" # | | ?#! """ !#?# #?????????# # | | ?# ### #?????????########## | | ##########+### %#???#####??????????# | | # # % % #?? ???????????# | | # """ # #? ??????????##### | | # """ # """ #? ???????????????? | | # """ # """ # """ "???????????????? | | # # """ # """ "???????????????? | | # """ # """x " """ "???###########?? | | #| """ + m # # "" #?? | | # """ # =x=############ ""S /### | | # # """%g#?# ????# "" # | | # """ ## """! #?# ????# """ + | | # "G ## """ #?# """ # """ # | | # """! ## """ #?# """ # """ ### | | # ## #?# # ## | | #####+### #?# """ # ## | | # # """ ### """ #######+#### | | # # """ + """ #?????# #??# | | # """ + """ ### #?????# #??#[ | | # """ # """ #?#####+####?????#%#??## | | # """ # ##### #########%##### | | # # % ! % =%!% | | ######### =!= ##### | +----------------------------------------------------+ Best States ------------- Heat Dissipation 31 Energy Generation 14 Energy Capacity 280 Matter Stores 300 Matter Capacity 300 Sight Range 16 Terrain Scan Density 10 Armor Coverage 225 Evasion (%) 55 Recoil Reduction 2 Item Schematics ----------------- Aluminum Leg | -9/Materials | Scanalyzed Weight Redist. System | -9/Materials | Scanalyzed Hcp. Storage Unit | -9/Materials | Scanalyzed Med. Storage Unit | -9/Materials | Scanalyzed Robot Schematics ------------------ None Fabricated ------------ Nothing Alien Tech Used ----------------- None Achievements -------------- True Hacker Challenges ------------ None Game ------ Seed SchematicTargetShielding Manual? 0 Play Time 00:35:43 Cumulative 6.4 hours Start 2024.11.21 @ 17:31:05 End 2024.11.22 @ 00:05:45 Sessions 3 Manual Loads 0 Difficulty Rogue Special Mode None Game No. 11 Rogue 11 Adventurer 0 Explorer 0 Win Type - Total 0 Types 0/0/0/0/0/0/0/0/0 Lore% 3 Gallery% 12 Achievement% 11 Wizard Run 0 Options --------- Layout 0 ASCII 0 Keyboard 1 Movement Vi Keybinds 0 Fullscreen 1 Font 24/Smallcaps Map View 76x50 Zoom Use 0% Tactical HUD 0 Map Filters NONE Filters NONE Steam 1 RUN: 92e70810-a007-4926-9c0e-e1a2dc28639a